[Event "*** Titled Tuesday Blitz"]
[Site "Chess.com"]
[Date "2020.05.05"]
[Round "7"]
[White "CMS13"]
[Black "eightbyeightchess"]
[Result "0-1"]
[WhiteElo "2183"]
[BlackElo "2408"]
[TimeControl "180+1"]
[EndTime "11:18:07 PDT"]
[Termination "eightbyeightchess won by checkmate"]

1. e4 {[%clk 0:03:00.9]} 1... e6 {[%clk 0:02:57.8]} 2. d4 {[%clk 0:03:00.7]}
2... d5 {[%clk 0:02:58.3]} 3. Nc3 {[%clk 0:03:00.9]} 3... Nf6 {[%clk 0:02:57.1]}
4. e5 {[%clk 0:03:01]} 4... Nfd7 {[%clk 0:02:56.5]} 5. f4 {[%clk 0:03:01.3]}
5... c5 {[%clk 0:02:56.9]} 6. Nf3 {[%clk 0:03:01.3]} 6... Nc6 {[%clk 0:02:57.4]}
7. Be3 {[%clk 0:03:01.2]} 7... cxd4 {[%clk 0:02:57.8]} 8. Nxd4 {[%clk
0:03:01.1]} 8... Bc5 {[%clk 0:02:57.9]} 9. Qd2 {[%clk 0:02:16.3]} 9... a6 {[%clk
0:02:55.9]} 10. O-O-O {[%clk 0:02:04.8]} 10... O-O {[%clk 0:02:52.2]} 11. h4
{[%clk 0:02:02.5]} 11... Bxd4 {[%clk 0:02:50.9]} 12. Bxd4 {[%clk 0:02:02.4]}
12... b5 {[%clk 0:02:49.3]} 13. h5 {[%clk 0:01:54.3]} 13... b4 {[%clk
0:02:44.6]} 14. Na4 {[%clk 0:01:53.9]} 14... Nxd4 {[%clk 0:02:43]} 15. Qxd4
{[%clk 0:01:53.3]} 15... Qa5 {[%clk 0:02:43.6]} 16. b3 {[%clk 0:01:49.6]} 16...
Bb7 {[%clk 0:02:43.4]} 17. Bd3 {[%clk 0:01:42.3]} 17... Bc6 {[%clk 0:02:40.6]}
18. Kb1 {[%clk 0:00:51.1]} 18... Bxa4 {[%clk 0:02:38.7]} 19. bxa4 {[%clk
0:00:52]} 19... Qc5 {[%clk 0:02:34.6]} 20. Qxc5 {[%clk 0:00:48.2]} 20... Nxc5
{[%clk 0:02:35.5]} 21. f5 {[%clk 0:00:42.6]} 21... Nxa4 {[%clk 0:02:32.4]} 22.
Ka1 {[%clk 0:00:41.7]} 22... exf5 {[%clk 0:02:28.4]} 23. Bxf5 {[%clk 0:00:41.1]}
23... Rfe8 {[%clk 0:02:28.3]} 24. Rxd5 {[%clk 0:00:39.4]} 24... Nc3 {[%clk
0:02:24.8]} 25. Rc5 {[%clk 0:00:34.1]} 25... Rad8 {[%clk 0:02:24]} 26. Bd3
{[%clk 0:00:30.9]} 26... Rd5 {[%clk 0:02:11.3]} 27. Rxd5 {[%clk 0:00:31]} 27...
Nxd5 {[%clk 0:02:12.2]} 28. Re1 {[%clk 0:00:28.9]} 28... a5 {[%clk 0:02:11.3]}
29. g3 {[%clk 0:00:28.3]} 29... h6 {[%clk 0:02:02.1]} 30. Kb2 {[%clk 0:00:27.5]}
30... Nf6 {[%clk 0:01:51.1]} 31. Bb5 {[%clk 0:00:24.4]} 31... Re7 {[%clk
0:01:48.9]} 32. Bd3 {[%clk 0:00:18.5]} 32... Nxh5 {[%clk 0:01:45.1]} 33. g4
{[%clk 0:00:19]} 33... Nf6 {[%clk 0:01:41.5]} 34. Re3 {[%clk 0:00:17.9]} 34...
Nxg4 {[%clk 0:01:41.1]} 35. Rg3 {[%clk 0:00:17.4]} 35... Nxe5 {[%clk 0:01:40.9]}
36. Bb5 {[%clk 0:00:16.6]} 36... g5 {[%clk 0:01:38.3]} 37. Bf1 {[%clk
0:00:16.5]} 37... f5 {[%clk 0:01:36.7]} 38. Rh3 {[%clk 0:00:15.3]} 38... Kg7
{[%clk 0:01:35.7]} 39. a4 {[%clk 0:00:13.1]} 39... g4 {[%clk 0:01:35.1]} 40. Rh2
{[%clk 0:00:12.6]} 40... f4 {[%clk 0:01:33.3]} 41. c4 {[%clk 0:00:12.2]} 41...
bxc3+ {[%clk 0:01:31.3]} 42. Kxc3 {[%clk 0:00:12.6]} 42... g3 {[%clk 0:01:31.3]}
43. Rg2 {[%clk 0:00:12.5]} 43... h5 {[%clk 0:01:30.8]} 44. Kd4 {[%clk
0:00:12.9]} 44... Nf3+ {[%clk 0:01:27.5]} 45. Kc5 {[%clk 0:00:12.5]} 45... h4
{[%clk 0:01:27.2]} 46. Kb5 {[%clk 0:00:11.7]} 46... h3 {[%clk 0:01:27.2]} 47.
Rxg3+ {[%clk 0:00:11.3]} 47... fxg3 {[%clk 0:01:26.6]} 48. Bxh3 {[%clk
0:00:12.2]} 48... Ng5 {[%clk 0:01:25]} 49. Bg2 {[%clk 0:00:11.6]} 49... Re2
{[%clk 0:01:24.8]} 50. Kxa5 {[%clk 0:00:08.7]} 50... Rxg2 {[%clk 0:01:24.1]} 51.
Kb6 {[%clk 0:00:08.8]} 51... Rb2+ {[%clk 0:01:23.9]} 52. Ka7 {[%clk 0:00:09.3]}
52... g2 {[%clk 0:01:24.4]} 53. a5 {[%clk 0:00:09.7]} 53... g1=Q+ {[%clk
0:01:24.7]} 54. Ka8 {[%clk 0:00:09.9]} 54... Qa1 {[%clk 0:01:23]} 55. a6 {[%clk
0:00:10]} 55... Qxa6# {[%clk 0:01:22.8]} 0-1

[Event "*** Titled Tuesday Blitz"]
[Site "Chess.com"]
[Date "2020.05.05"]
[Round "7"]
[White "garicradomir"]
[Black "Mizner"]
[Result "1-0"]
[WhiteElo "2379"]
[BlackElo "2504"]
[TimeControl "180+1"]
[EndTime "11:18:11 PDT"]
[Termination "garicradomir won on time"]

1. e4 {[%clk 0:03:00.9]} 1... e6 {[%clk 0:02:59.8]} 2. g3 {[%clk 0:02:59.6]}
2... d5 {[%clk 0:03:00.7]} 3. exd5 {[%clk 0:02:57.7]} 3... Qxd5 {[%clk
0:02:57.5]} 4. Nf3 {[%clk 0:02:57.2]} 4... c5 {[%clk 0:02:57]} 5. Bg2 {[%clk
0:02:56.8]} 5... Nc6 {[%clk 0:02:56.9]} 6. O-O {[%clk 0:02:56.4]} 6... Nf6
{[%clk 0:02:53.4]} 7. Nc3 {[%clk 0:02:56.4]} 7... Qd7 {[%clk 0:02:49.9]} 8. Ne2
{[%clk 0:02:55]} 8... b6 {[%clk 0:02:40.8]} 9. d4 {[%clk 0:02:55]} 9... Bb7
{[%clk 0:02:40.5]} 10. c4 {[%clk 0:02:54.1]} 10... Rd8 {[%clk 0:02:33.7]} 11.
Be3 {[%clk 0:02:44.6]} 11... cxd4 {[%clk 0:02:30.7]} 12. Nexd4 {[%clk
0:02:40.7]} 12... Ng4 {[%clk 0:02:27]} 13. Nxc6 {[%clk 0:02:37.3]} 13... Qxc6
{[%clk 0:02:25.9]} 14. Qe2 {[%clk 0:02:30]} 14... Nxe3 {[%clk 0:02:21.5]} 15.
Qxe3 {[%clk 0:02:21.4]} 15... Bc5 {[%clk 0:02:20.8]} 16. Qg5 {[%clk 0:02:16.8]}
16... O-O {[%clk 0:02:19.2]} 17. Nh4 {[%clk 0:02:14.8]} 17... Qc7 {[%clk
0:02:12.9]} 18. Bxb7 {[%clk 0:02:14.2]} 18... Qxb7 {[%clk 0:02:13.8]} 19. Rad1
{[%clk 0:02:12.6]} 19... Rxd1 {[%clk 0:01:24]} 20. Rxd1 {[%clk 0:02:09.7]} 20...
Qa6 {[%clk 0:01:24.9]} 21. a3 {[%clk 0:01:55.4]} 21... Qxc4 {[%clk 0:01:23.8]}
22. b4 {[%clk 0:01:55.5]} 22... Bd4 {[%clk 0:01:03.8]} 23. Nf3 {[%clk
0:01:42.1]} 23... Bf6 {[%clk 0:01:00.3]} 24. Qe3 {[%clk 0:01:34.9]} 24... Rc8
{[%clk 0:00:34.5]} 25. Kg2 {[%clk 0:01:34]} 25... Qc6 {[%clk 0:00:30.7]} 26. h3
{[%clk 0:01:32.7]} 26... h6 {[%clk 0:00:29.9]} 27. Rd3 {[%clk 0:01:30.9]} 27...
a6 {[%clk 0:00:23.6]} 28. g4 {[%clk 0:01:31.2]} 28... b5 {[%clk 0:00:23.4]} 29.
h4 {[%clk 0:01:31.2]} 29... Rd8 {[%clk 0:00:19.2]} 30. g5 {[%clk 0:01:28.5]}
30... hxg5 {[%clk 0:00:17.8]} 31. hxg5 {[%clk 0:01:29.4]} 31... Be7 {[%clk
0:00:15.6]} 32. g6 {[%clk 0:01:22.8]} 32... f5 {[%clk 0:00:11.2]} 33. Rc3 {[%clk
0:01:02.1]} 33... Qd5 {[%clk 0:00:10.6]} 34. Rc7 {[%clk 0:00:53.4]} 34... Bf6
{[%clk 0:00:04.6]} 35. Rc5 {[%clk 0:00:53.3]} 35... Qb7 {[%clk 0:00:02.9]} 36.
Qxe6+ {[%clk 0:00:52]} 1-0

[Event "*** Titled Tuesday Blitz"]
[Site "Chess.com"]
[Date "2020.05.05"]
[Round "7"]
[White "Anuar_Is"]
[Black "bazar-wokzal"]
[Result "1-0"]
[WhiteElo "2764"]
[BlackElo "2534"]
[TimeControl "180+1"]
[EndTime "11:18:14 PDT"]
[Termination "Anuar_Is won by resignation"]

1. e4 {[%clk 0:03:00.9]} 1... Nc6 {[%clk 0:02:56.3]} 2. d4 {[%clk 0:03:00.5]}
2... d5 {[%clk 0:02:56]} 3. e5 {[%clk 0:03:00.7]} 3... h5 {[%clk 0:02:55.3]} 4.
c3 {[%clk 0:02:59.6]} 4... Bg4 {[%clk 0:02:53.9]} 5. Qb3 {[%clk 0:02:58.7]} 5...
Na5 {[%clk 0:02:52.9]} 6. Qa4+ {[%clk 0:02:57.3]} 6... c6 {[%clk 0:02:53]} 7.
Bd3 {[%clk 0:02:55.9]} 7... b5 {[%clk 0:02:51.5]} 8. Qc2 {[%clk 0:02:55.2]} 8...
Nc4 {[%clk 0:02:46.9]} 9. a4 {[%clk 0:02:51.4]} 9... a6 {[%clk 0:02:45.3]} 10.
b3 {[%clk 0:02:49.9]} 10... Nb6 {[%clk 0:02:45]} 11. Nd2 {[%clk 0:02:44.1]}
11... Nh6 {[%clk 0:02:41.5]} 12. h3 {[%clk 0:02:42.8]} 12... Bd7 {[%clk
0:02:34.9]} 13. Ne2 {[%clk 0:02:30.5]} 13... g6 {[%clk 0:02:33.9]} 14. f4 {[%clk
0:02:30.1]} 14... Bf5 {[%clk 0:02:32.1]} 15. Nf3 {[%clk 0:02:27.7]} 15... Qd7
{[%clk 0:02:22]} 16. axb5 {[%clk 0:02:25.8]} 16... axb5 {[%clk 0:02:20.7]} 17.
Rxa8+ {[%clk 0:02:25.5]} 17... Nxa8 {[%clk 0:02:20.8]} 18. O-O {[%clk
0:02:26.2]} 18... Bg7 {[%clk 0:02:18.6]} 19. Bxf5 {[%clk 0:02:19.8]} 19... Nxf5
{[%clk 0:02:14.8]} 20. Ba3 {[%clk 0:02:19.5]} 20... O-O {[%clk 0:02:11.9]} 21.
Kf2 {[%clk 0:02:10.7]} 21... h4 {[%clk 0:02:07.9]} 22. g4 {[%clk 0:02:07.8]}
22... hxg3+ {[%clk 0:02:07]} 23. Nxg3 {[%clk 0:02:08.4]} 23... Nxg3 {[%clk
0:01:52.9]} 24. Kxg3 {[%clk 0:02:09.3]} 24... Nc7 {[%clk 0:01:52.3]} 25. f5
{[%clk 0:02:05]} 25... Ra8 {[%clk 0:01:48.2]} 26. fxg6 {[%clk 0:01:59.4]} 26...
f6 {[%clk 0:01:01.8]} 27. Bc1 {[%clk 0:01:50.7]} 27... fxe5 {[%clk 0:00:57.2]}
28. Nxe5 {[%clk 0:01:24.2]} 28... Bxe5+ {[%clk 0:00:42.5]} 29. dxe5 {[%clk
0:01:25.1]} 29... Qe6 {[%clk 0:00:41]} 30. Qf5 {[%clk 0:01:25.1]} 30... Qxf5
{[%clk 0:00:35.8]} 31. Rxf5 {[%clk 0:01:26]} 31... Ra1 {[%clk 0:00:35.3]} 32.
Be3 {[%clk 0:01:23.5]} 32... Rb1 {[%clk 0:00:23.8]} 33. b4 {[%clk 0:01:08]}
33... d4 {[%clk 0:00:20]} 34. Bxd4 {[%clk 0:01:07.1]} 34... Ne6 {[%clk
0:00:16.5]} 35. h4 {[%clk 0:00:58.8]} 35... Nxd4 {[%clk 0:00:14.8]} 36. cxd4
{[%clk 0:00:59.7]} 36... Rg1+ {[%clk 0:00:14.5]} 37. Kf4 {[%clk 0:00:59.5]}
37... Rxg6 {[%clk 0:00:14.9]} 38. Rg5 {[%clk 0:00:59.2]} 38... Kg7 {[%clk
0:00:11.8]} 39. h5 {[%clk 0:00:55.9]} 1-0

[Event "*** Titled Tuesday Blitz"]
[Site "Chess.com"]
[Date "2020.05.05"]
[Round "7"]
[White "2008king"]
[Black "Titus369"]
[Result "0-1"]
[WhiteElo "2069"]
[BlackElo "2498"]
[TimeControl "180+1"]
[EndTime "11:18:15 PDT"]
[Termination "Titus369 won by resignation"]

1. e4 {[%clk 0:03:00.9]} 1... c5 {[%clk 0:02:58.4]} 2. Nf3 {[%clk 0:02:59.3]}
2... d6 {[%clk 0:02:58.4]} 3. d4 {[%clk 0:02:58.8]} 3... cxd4 {[%clk 0:02:59.3]}
4. Qxd4 {[%clk 0:02:59.1]} 4... Nf6 {[%clk 0:03:00]} 5. c4 {[%clk 0:02:58.4]}
5... Nc6 {[%clk 0:02:59.8]} 6. Qe3 {[%clk 0:02:57.4]} 6... g6 {[%clk 0:02:59.9]}
7. Nc3 {[%clk 0:02:56.9]} 7... Bg7 {[%clk 0:03:00.3]} 8. Be2 {[%clk 0:02:53.6]}
8... O-O {[%clk 0:02:57.2]} 9. O-O {[%clk 0:02:53.3]} 9... Be6 {[%clk
0:02:56.1]} 10. Rd1 {[%clk 0:02:50.6]} 10... Ng4 {[%clk 0:02:52.8]} 11. Qd2
{[%clk 0:02:48.4]} 11... Qb6 {[%clk 0:02:51.8]} 12. Qe1 {[%clk 0:02:46.6]} 12...
Nd4 {[%clk 0:02:42.1]} 13. Nxd4 {[%clk 0:02:40]} 13... Bxd4 {[%clk 0:02:43]} 14.
Bxg4 {[%clk 0:02:40.3]} 14... Bxg4 {[%clk 0:02:39.5]} 15. Rd3 {[%clk 0:02:40.2]}
15... e5 {[%clk 0:02:18.2]} 16. Nd5 {[%clk 0:02:32.2]} 16... Qd8 {[%clk
0:02:17.3]} 17. h3 {[%clk 0:02:27.8]} 17... Be6 {[%clk 0:02:16]} 18. Bh6 {[%clk
0:02:20.9]} 18... Re8 {[%clk 0:02:09.9]} 19. Rad1 {[%clk 0:02:16.6]} 19... Qh4
{[%clk 0:02:05.5]} 20. Be3 {[%clk 0:02:13.6]} 20... Bxd5 {[%clk 0:02:03.6]} 21.
cxd5 {[%clk 0:01:57.4]} 21... Bxb2 {[%clk 0:01:56.1]} 22. Rb3 {[%clk 0:01:48.3]}
22... Bd4 {[%clk 0:01:55]} 23. Bxd4 {[%clk 0:01:44.8]} 23... exd4 {[%clk
0:01:55.1]} 24. Rxd4 {[%clk 0:01:34]} 24... b6 {[%clk 0:01:47.6]} 25. Rc4 {[%clk
0:01:23]} 25... Re7 {[%clk 0:01:27.7]} 26. Qe2 {[%clk 0:01:13]} 26... Rae8
{[%clk 0:01:22.5]} 27. f3 {[%clk 0:01:10.7]} 27... Qg5 {[%clk 0:01:18.8]} 28.
Rbc3 {[%clk 0:01:00.9]} 28... Qxd5 {[%clk 0:01:14.8]} 29. exd5 {[%clk
0:00:59.2]} 29... Rxe2 {[%clk 0:01:15.7]} 30. Rc6 {[%clk 0:00:59]} 30... Rxa2
{[%clk 0:01:14.2]} 31. Rxd6 {[%clk 0:00:59]} 31... Ree2 {[%clk 0:01:14.7]} 32.
Rc8+ {[%clk 0:00:55.7]} 32... Kg7 {[%clk 0:01:13.9]} 33. Rdd8 {[%clk 0:00:51.6]}
33... Rxg2+ {[%clk 0:01:13.1]} 34. Kh1 {[%clk 0:00:51.4]} 34... Rh2+ {[%clk
0:01:12.3]} 35. Kg1 {[%clk 0:00:51.3]} 35... Rag2+ {[%clk 0:01:12.9]} 36. Kf1
{[%clk 0:00:51.1]} 36... Ra2 {[%clk 0:01:13.5]} 37. Kg1 {[%clk 0:00:49.7]} 37...
Rxh3 {[%clk 0:01:13.2]} 38. Rc3 {[%clk 0:00:47.6]} 38... Rg3+ {[%clk 0:01:11.9]}
39. Kh1 {[%clk 0:00:46.5]} 39... Rg5 {[%clk 0:01:10.3]} 40. d6 {[%clk 0:00:46]}
40... Rd5 {[%clk 0:01:10]} 41. Rc1 {[%clk 0:00:44.4]} 41... Rad2 {[%clk
0:01:09.2]} 42. Rd7 {[%clk 0:00:42.8]} 42... Rxd6 {[%clk 0:01:04.4]} 43. Rxa7
{[%clk 0:00:42.2]} 43... Rd1+ {[%clk 0:01:04.1]} 44. Rxd1 {[%clk 0:00:41.6]}
44... Rxd1+ {[%clk 0:01:05]} 45. Kg2 {[%clk 0:00:41.6]} 45... Rb1 {[%clk
0:01:03.9]} 46. Rb7 {[%clk 0:00:41.3]} 46... g5 {[%clk 0:01:04.1]} 47. Kg3
{[%clk 0:00:40]} 47... h5 {[%clk 0:01:04.5]} 48. f4 {[%clk 0:00:38.8]} 48...
Rb3+ {[%clk 0:01:04.5]} 49. Kf2 {[%clk 0:00:38.2]} 49... g4 {[%clk 0:01:04.9]}
50. Kg2 {[%clk 0:00:38]} 50... h4 {[%clk 0:01:05.1]} 51. Kh2 {[%clk 0:00:38.1]}
51... Rb2+ {[%clk 0:01:05.2]} 52. Kg1 {[%clk 0:00:39]} 52... g3 {[%clk
0:01:05.5]} 53. Rc7 {[%clk 0:00:39.3]} 53... h3 {[%clk 0:01:04.6]} 54. Rc1
{[%clk 0:00:39.6]} 54... b5 {[%clk 0:01:01.6]} 55. f5 {[%clk 0:00:37.3]} 55...
b4 {[%clk 0:01:00.3]} 56. Ra1 {[%clk 0:00:33.8]} 56... b3 {[%clk 0:00:59.9]} 57.
Re1 {[%clk 0:00:32.3]} 57... Rc2 {[%clk 0:00:59.2]} 58. Rb1 {[%clk 0:00:31.7]}
58... b2 {[%clk 0:00:59.2]} 0-1

[Event "*** Titled Tuesday Blitz"]
[Site "Chess.com"]
[Date "2020.05.05"]
[Round "7"]
[White "FM_VS99"]
[Black "Zq1"]
[Result "0-1"]
[WhiteElo "2320"]
[BlackElo "2553"]
[TimeControl "180+1"]
[EndTime "11:18:16 PDT"]
[Termination "Zq1 won by resignation"]

1. c4 {[%clk 0:03:00.9]} 1... e6 {[%clk 0:02:59.1]} 2. g3 {[%clk 0:03:01.5]}
2... d5 {[%clk 0:02:59.2]} 3. Nf3 {[%clk 0:03:02.2]} 3... Nf6 {[%clk 0:02:59.4]}
4. Bg2 {[%clk 0:03:02.9]} 4... Be7 {[%clk 0:02:59.7]} 5. O-O {[%clk 0:03:03.3]}
5... O-O {[%clk 0:02:59.9]} 6. d4 {[%clk 0:03:02.7]} 6... c6 {[%clk 0:02:58.1]}
7. Nc3 {[%clk 0:03:02]} 7... b6 {[%clk 0:02:55.6]} 8. Nd2 {[%clk 0:03:00.7]}
8... Bb7 {[%clk 0:02:52.5]} 9. e4 {[%clk 0:03:00.5]} 9... Nbd7 {[%clk
0:02:50.3]} 10. Re1 {[%clk 0:02:55.9]} 10... Rc8 {[%clk 0:02:43.2]} 11. b3
{[%clk 0:02:33.7]} 11... dxe4 {[%clk 0:02:25.4]} 12. Ndxe4 {[%clk 0:02:32.8]}
12... Nxe4 {[%clk 0:02:23.5]} 13. Nxe4 {[%clk 0:02:32.2]} 13... Nf6 {[%clk
0:02:21.9]} 14. Nc3 {[%clk 0:02:31.3]} 14... Qc7 {[%clk 0:02:19.1]} 15. Bf4
{[%clk 0:02:23]} 15... Bd6 {[%clk 0:02:18.3]} 16. Bg5 {[%clk 0:02:23.1]} 16...
Be7 {[%clk 0:02:17.9]} 17. Bf4 {[%clk 0:02:23]} 17... Bd6 {[%clk 0:02:17.5]} 18.
Bg5 {[%clk 0:02:22.7]} 18... Rfe8 {[%clk 0:01:58.1]} 19. Bxf6 {[%clk 0:02:17.4]}
19... gxf6 {[%clk 0:01:58.2]} 20. Qf3 {[%clk 0:02:17.5]} 20... Be7 {[%clk
0:01:53.7]} 21. Qg4+ {[%clk 0:02:12.2]} 21... Kh8 {[%clk 0:01:52.5]} 22. Qh5
{[%clk 0:02:12.2]} 22... Bf8 {[%clk 0:01:48.5]} 23. Re4 {[%clk 0:02:07.3]} 23...
Bg7 {[%clk 0:01:46.5]} 24. Rh4 {[%clk 0:02:06.4]} 24... h6 {[%clk 0:01:46.7]}
25. Ne4 {[%clk 0:02:05.2]} 25... f5 {[%clk 0:01:38.8]} 26. Nd2 {[%clk
0:01:55.5]} 26... Qe7 {[%clk 0:01:32.3]} 27. Nf3 {[%clk 0:01:53.5]} 27... c5
{[%clk 0:01:24.1]} 28. Re1 {[%clk 0:01:15.3]} 28... Bxf3 {[%clk 0:01:13.4]} 29.
Bxf3 {[%clk 0:01:12.7]} 29... cxd4 {[%clk 0:01:13.6]} 30. g4 {[%clk 0:01:10.3]}
30... fxg4 {[%clk 0:01:07.4]} 31. Rxg4 {[%clk 0:01:09.8]} 31... Qf6 {[%clk
0:01:00.6]} 32. Be4 {[%clk 0:00:58.6]} 32... Rg8 {[%clk 0:00:57.4]} 33. Kf1
{[%clk 0:00:48.7]} 33... Rcd8 {[%clk 0:00:47.9]} 34. Bd3 {[%clk 0:00:47.8]}
34... Qf3 {[%clk 0:00:38.8]} 35. Rxg7 {[%clk 0:00:43.1]} 35... Qxd3+ {[%clk
0:00:37.9]} 36. Re2 {[%clk 0:00:21.9]} 36... Qd1+ {[%clk 0:00:31.2]} 0-1

[Event "*** Titled Tuesday Blitz"]
[Site "Chess.com"]
[Date "2020.05.05"]
[Round "7"]
[White "Superfelix"]
[Black "SHIVACalypso"]
[Result "1-0"]
[WhiteElo "2472"]
[BlackElo "2297"]
[TimeControl "180+1"]
[EndTime "11:18:16 PDT"]
[Termination "Superfelix won by resignation"]

1. e4 {[%clk 0:03:00.9]} 1... e6 {[%clk 0:02:55.9]} 2. d4 {[%clk 0:03:00.1]}
2... d5 {[%clk 0:02:56.3]} 3. exd5 {[%clk 0:03:01]} 3... exd5 {[%clk 0:02:56.7]}
4. Bd3 {[%clk 0:03:00.8]} 4... Bd6 {[%clk 0:02:56.5]} 5. Nf3 {[%clk 0:02:58.7]}
5... Nf6 {[%clk 0:02:54.1]} 6. Nbd2 {[%clk 0:02:58.6]} 6... O-O {[%clk
0:02:51.5]} 7. O-O {[%clk 0:02:57.9]} 7... h6 {[%clk 0:02:46.3]} 8. Re1 {[%clk
0:02:58]} 8... Be6 {[%clk 0:02:45.9]} 9. Nf1 {[%clk 0:02:58.3]} 9... c6 {[%clk
0:02:40.6]} 10. Ne3 {[%clk 0:02:58.1]} 10... Qc7 {[%clk 0:02:37.9]} 11. Nf5
{[%clk 0:02:56]} 11... Bf4 {[%clk 0:02:32.8]} 12. Ne7+ {[%clk 0:02:43.3]} 12...
Kh8 {[%clk 0:02:20.9]} 13. Bxf4 {[%clk 0:02:41.2]} 13... Qxf4 {[%clk 0:02:20.1]}
14. Rxe6 {[%clk 0:02:40.9]} 14... Re8 {[%clk 0:01:48.7]} 15. Re1 {[%clk
0:02:36]} 15... Ne4 {[%clk 0:01:42.6]} 16. g3 {[%clk 0:02:18.8]} 16... Qg4
{[%clk 0:01:27.7]} 17. Bxe4 {[%clk 0:02:04.1]} 17... dxe4 {[%clk 0:01:26.6]} 18.
Ne5 {[%clk 0:02:02.8]} 18... Qxd1 {[%clk 0:01:18]} 19. Raxd1 {[%clk 0:02:03.7]}
19... Rxe7 {[%clk 0:01:18.3]} 20. Rxe4 {[%clk 0:02:04]} 20... Kg8 {[%clk
0:01:15.5]} 21. Rde1 {[%clk 0:02:02.4]} 21... Nd7 {[%clk 0:01:15.1]} 22. Nxd7
{[%clk 0:01:58.9]} 22... Rxd7 {[%clk 0:01:16]} 23. Re8+ {[%clk 0:01:58.4]} 23...
Rxe8 {[%clk 0:01:14.6]} 24. Rxe8+ {[%clk 0:01:59.3]} 24... Kh7 {[%clk
0:01:15.3]} 25. c3 {[%clk 0:01:59.3]} 25... Kg6 {[%clk 0:01:15.9]} 26. Kg2
{[%clk 0:01:58.6]} 26... Kf6 {[%clk 0:01:11.3]} 27. Kf3 {[%clk 0:01:58.1]} 27...
g6 {[%clk 0:00:56.8]} 28. h4 {[%clk 0:01:57.9]} 28... h5 {[%clk 0:00:56.4]} 29.
Ke4 {[%clk 0:01:57.7]} 29... Rd5 {[%clk 0:00:53.4]} 30. b4 {[%clk 0:01:54.1]}
30... a5 {[%clk 0:00:50.8]} 31. a3 {[%clk 0:01:51.8]} 31... axb4 {[%clk
0:00:50]} 32. axb4 {[%clk 0:01:52.7]} 32... Rb5 {[%clk 0:00:46]} 33. f4 {[%clk
0:01:47.9]} 33... Rb6 {[%clk 0:00:45.1]} 34. Re5 {[%clk 0:01:45.8]} 34... Ra6
{[%clk 0:00:43.8]} 35. Ra5 {[%clk 0:01:44.8]} 35... Rb6 {[%clk 0:00:43.8]} 36.
Ra8 {[%clk 0:01:40.6]} 36... Ke6 {[%clk 0:00:41.4]} 37. Re8+ {[%clk 0:01:39.6]}
37... Kf6 {[%clk 0:00:41.5]} 38. Re5 {[%clk 0:01:38.7]} 38... Ra6 {[%clk
0:00:40.6]} 39. Ra5 {[%clk 0:01:37.8]} 39... Rb6 {[%clk 0:00:40.8]} 40. Kd3
{[%clk 0:01:37.2]} 40... Ke6 {[%clk 0:00:37.3]} 41. Kc4 {[%clk 0:01:36.9]} 41...
Kd6 {[%clk 0:00:37.1]} 42. f5 {[%clk 0:01:28.5]} 42... gxf5 {[%clk 0:00:31.8]}
43. Rxf5 {[%clk 0:01:29.4]} 43... Ra6 {[%clk 0:00:31.1]} 44. Rxf7 {[%clk
0:01:28.5]} 44... Ra1 {[%clk 0:00:26.9]} 45. Rxb7 {[%clk 0:01:28]} 45... Rg1
{[%clk 0:00:25.6]} 46. Rg7 {[%clk 0:01:27.7]} 46... Rg2 {[%clk 0:00:25.7]} 47.
Rg5 {[%clk 0:01:27.1]} 47... Kc7 {[%clk 0:00:25.2]} 48. Kc5 {[%clk 0:01:26.1]}
48... Rc2 {[%clk 0:00:25.4]} 49. c4 {[%clk 0:01:26.1]} 49... Kd7 {[%clk
0:00:24.5]} 50. Rg7+ {[%clk 0:01:25.4]} 50... Kd8 {[%clk 0:00:23.7]} 51. d5
{[%clk 0:01:22]} 51... cxd5 {[%clk 0:00:23.7]} 52. Kxd5 {[%clk 0:01:22.9]} 52...
Rd2+ {[%clk 0:00:24.3]} 53. Kc6 {[%clk 0:01:22.3]} 53... Rd4 {[%clk 0:00:21.7]}
54. Kc5 {[%clk 0:01:21.5]} 54... Rd3 {[%clk 0:00:21.4]} 55. b5 {[%clk
0:01:21.4]} 1-0

[Event "*** Titled Tuesday Blitz"]
[Site "Chess.com"]
[Date "2020.05.05"]
[Round "7"]
[White "xamax2000"]
[Black "Stormeman100100"]
[Result "1/2-1/2"]
[WhiteElo "2702"]
[BlackElo "2550"]
[TimeControl "180+1"]
[EndTime "11:18:18 PDT"]
[Termination "Game drawn by repetition"]

1. e4 {[%clk 0:03:00.9]} 1... c5 {[%clk 0:02:57.3]} 2. Nf3 {[%clk 0:02:56.9]}
2... d6 {[%clk 0:02:56.8]} 3. Bb5+ {[%clk 0:02:55.8]} 3... Nd7 {[%clk
0:02:55.9]} 4. d4 {[%clk 0:02:52.4]} 4... cxd4 {[%clk 0:02:55.1]} 5. Qxd4 {[%clk
0:02:53.3]} 5... Nf6 {[%clk 0:02:50.7]} 6. Nc3 {[%clk 0:02:51.2]} 6... a6 {[%clk
0:02:50.6]} 7. Bxd7+ {[%clk 0:02:38.1]} 7... Bxd7 {[%clk 0:02:51.5]} 8. Bg5
{[%clk 0:02:37.8]} 8... e6 {[%clk 0:02:49]} 9. e5 {[%clk 0:02:28.4]} 9... dxe5
{[%clk 0:02:29.3]} 10. Nxe5 {[%clk 0:02:29.3]} 10... Bc6 {[%clk 0:02:22.6]} 11.
Nxc6 {[%clk 0:02:29]} 11... bxc6 {[%clk 0:02:22.3]} 12. Qc4 {[%clk 0:02:04.8]}
12... Qb6 {[%clk 0:02:17]} 13. Bxf6 {[%clk 0:01:26.5]} 13... gxf6 {[%clk
0:02:17.9]} 14. O-O-O {[%clk 0:01:12.8]} 14... Be7 {[%clk 0:02:15.1]} 15. Ne4
{[%clk 0:01:10.3]} 15... Rb8 {[%clk 0:02:08.9]} 16. b3 {[%clk 0:01:09.2]} 16...
O-O {[%clk 0:02:06.1]} 17. Qc3 {[%clk 0:00:49.4]} 17... f5 {[%clk 0:01:49.4]}
18. Nf6+ {[%clk 0:00:49]} 18... Bxf6 {[%clk 0:01:49.7]} 19. Qxf6 {[%clk
0:00:49.9]} 19... Rfd8 {[%clk 0:01:50.1]} 20. Kb1 {[%clk 0:00:35.2]} 20... Rd5
{[%clk 0:01:46.6]} 21. Qg5+ {[%clk 0:00:26.8]} 21... Kh8 {[%clk 0:01:43.8]} 22.
Rxd5 {[%clk 0:00:21.7]} 22... cxd5 {[%clk 0:01:41.9]} 23. g4 {[%clk 0:00:20.9]}
23... Qxf2 {[%clk 0:01:17.1]} 24. Qf6+ {[%clk 0:00:20.8]} 24... Kg8 {[%clk
0:01:16.2]} 25. gxf5 {[%clk 0:00:21.7]} 25... exf5 {[%clk 0:01:15.1]} 26. Qe5
{[%clk 0:00:17.5]} 26... Rc8 {[%clk 0:01:05.4]} 27. Rc1 {[%clk 0:00:17.4]} 27...
d4 {[%clk 0:00:58.3]} 28. h4 {[%clk 0:00:12.4]} 28... d3 {[%clk 0:00:50.4]} 29.
cxd3 {[%clk 0:00:12.5]} 29... Rxc1+ {[%clk 0:00:49]} 30. Kxc1 {[%clk 0:00:13.4]}
30... f4 {[%clk 0:00:49.2]} 31. d4 {[%clk 0:00:08.3]} 31... f3 {[%clk 0:00:44]}
32. Qg5+ {[%clk 0:00:05.8]} 32... Kf8 {[%clk 0:00:42.1]} 33. Qd8+ {[%clk
0:00:06.3]} 33... Kg7 {[%clk 0:00:42.3]} 34. Qg5+ {[%clk 0:00:07.2]} 34... Kf8
{[%clk 0:00:42.1]} 35. Qd8+ {[%clk 0:00:08]} 35... Kg7 {[%clk 0:00:42.2]} 36.
Qg5+ {[%clk 0:00:08.4]} 36... Kf8 {[%clk 0:00:42.2]} 1/2-1/2